[Event "*** Titled Tuesday Blitz"]
[Site "Chess.com"]
[Date "2020.11.24"]
[Round "10"]
[White "Tpros"]
[Black "Nadeev_Sergey"]
[Result "1-0"]
[WhiteElo "2588"]
[BlackElo "2462"]
[TimeControl "180+1"]
[EndTime "12:15:04 PST"]
[Termination "Tpros won by resignation"]

1. e4 {[%clk 0:03:00.9]} 1... e5 {[%clk 0:02:59.9]} 2. Nf3 {[%clk 0:03:01.1]}
2... Nc6 {[%clk 0:03:00]} 3. Bb5 {[%clk 0:03:01.3]} 3... a6 {[%clk 0:03:00]} 4.
Bxc6 {[%clk 0:03:01.9]} 4... dxc6 {[%clk 0:03:00.1]} 5. Nc3 {[%clk 0:03:02.8]}
5... f6 {[%clk 0:02:59.4]} 6. d4 {[%clk 0:03:03.3]} 6... exd4 {[%clk 0:02:59.3]}
7. Nxd4 {[%clk 0:03:04.2]} 7... c5 {[%clk 0:02:59.2]} 8. Nde2 {[%clk 0:03:04.8]}
8... Qxd1+ {[%clk 0:02:59.5]} 9. Nxd1 {[%clk 0:03:05.7]} 9... Be6 {[%clk
0:02:46.1]} 10. Bf4 {[%clk 0:03:05.4]} 10... O-O-O {[%clk 0:02:45.6]} 11. h4
{[%clk 0:03:04.8]} 11... h5 {[%clk 0:02:44.8]} 12. Ne3 {[%clk 0:03:04.8]} 12...
Ne7 {[%clk 0:02:36.6]} 13. f3 {[%clk 0:03:03.5]} 13... Nc6 {[%clk 0:02:35.8]}
14. O-O {[%clk 0:02:57.1]} 14... Nd4 {[%clk 0:02:30.1]} 15. Kf2 {[%clk 0:02:56]}
15... Be7 {[%clk 0:02:20.5]} 16. Rfd1 {[%clk 0:02:55]} 16... Rhe8 {[%clk
0:01:54.3]} 17. b3 {[%clk 0:02:54.3]} 17... Bd6 {[%clk 0:01:41]} 18. Bxd6 {[%clk
0:02:50.6]} 18... Rxd6 {[%clk 0:01:41.6]} 19. c3 {[%clk 0:02:49.2]} 19... Nxe2
{[%clk 0:01:39.3]} 20. Kxe2 {[%clk 0:02:50.1]} 20... f5 {[%clk 0:01:28.8]} 21.
Rxd6 {[%clk 0:02:47.8]} 21... cxd6 {[%clk 0:01:28.6]} 22. exf5 {[%clk
0:02:45.6]} 22... Bxf5 {[%clk 0:01:28.2]} 23. Rd1 {[%clk 0:02:46.5]} 23... Kc7
{[%clk 0:01:20.3]} 24. Kf2 {[%clk 0:02:46.2]} 24... Be6 {[%clk 0:01:18.2]} 25.
c4 {[%clk 0:02:45.1]} 25... Kc6 {[%clk 0:01:17.6]} 26. a4 {[%clk 0:02:11.5]}
26... b6 {[%clk 0:01:17.3]} 27. Rd3 {[%clk 0:02:10.4]} 27... g6 {[%clk
0:01:15.2]} 28. g3 {[%clk 0:02:02.1]} 28... Rb8 {[%clk 0:01:09.1]} 29. Nd5
{[%clk 0:01:56.9]} 29... b5 {[%clk 0:01:06.7]} 30. axb5+ {[%clk 0:01:55.4]}
30... axb5 {[%clk 0:01:07.1]} 31. Ne7+ {[%clk 0:01:51.7]} 31... Kd7 {[%clk
0:01:04.9]} 32. Nd5 {[%clk 0:01:47.2]} 32... bxc4 {[%clk 0:01:02.1]} 33. bxc4
{[%clk 0:01:48.1]} 33... Rb2+ {[%clk 0:00:51.9]} 34. Ke3 {[%clk 0:01:48]} 34...
Rg2 {[%clk 0:00:50]} 35. Kf4 {[%clk 0:01:46.5]} 35... Rc2 {[%clk 0:00:43.9]} 36.
Kg5 {[%clk 0:01:41.7]} 36... Bf5 {[%clk 0:00:43.9]} 37. Rc3 {[%clk 0:01:36.4]}
37... Rxc3 {[%clk 0:00:35.3]} 38. Nxc3 {[%clk 0:01:36.5]} 38... Bd3 {[%clk
0:00:29.3]} 39. g4 {[%clk 0:01:36.3]} 39... hxg4 {[%clk 0:00:27.8]} 40. fxg4
{[%clk 0:01:37.2]} 40... Ke6 {[%clk 0:00:25]} 41. Nd1 {[%clk 0:01:16.3]} 41...
Bxc4 {[%clk 0:00:21.7]} 42. Kxg6 {[%clk 0:01:16.3]} 42... Be2 {[%clk 0:00:21.4]}
43. Nf2 {[%clk 0:00:58.6]} 43... c4 {[%clk 0:00:20.7]} 44. h5 {[%clk 0:00:54.9]}
44... c3 {[%clk 0:00:18.6]} 45. h6 {[%clk 0:00:55.4]} 45... c2 {[%clk
0:00:18.9]} 46. h7 {[%clk 0:00:55.8]} 46... c1=Q {[%clk 0:00:18.7]} 47. h8=Q
{[%clk 0:00:56]} 47... Qb1+ {[%clk 0:00:16.1]} 48. Kh6 {[%clk 0:00:36.7]} 48...
Qc1+ {[%clk 0:00:13.6]} 49. g5 {[%clk 0:00:36.7]} 49... Qf1 {[%clk 0:00:08]} 50.
Qf6+ {[%clk 0:00:34.3]} 50... Kd7 {[%clk 0:00:08.2]} 51. g6 {[%clk 0:00:29.3]}
51... Bc4 {[%clk 0:00:06.6]} 52. g7 {[%clk 0:00:20.9]} 52... Qe2 {[%clk
0:00:02.5]} 53. Qf5+ {[%clk 0:00:15.1]} 53... Qe6+ {[%clk 0:00:01.9]} 54. Qxe6+
{[%clk 0:00:14]} 54... Bxe6 {[%clk 0:00:02.8]} 55. Ne4 {[%clk 0:00:10.7]} 55...
Ke7 {[%clk 0:00:01.2]} 56. Kh7 {[%clk 0:00:02.9]} 56... d5 {[%clk 0:00:01.6]}
57. Ng5 {[%clk 0:00:02.2]} 57... Bf5+ {[%clk 0:00:01.4]} 58. Kh8 {[%clk
0:00:01.6]} 1-0

[Event "*** Titled Tuesday Blitz"]
[Site "Chess.com"]
[Date "2020.11.24"]
[Round "10"]
[White "anon481216"]
[Black "Marty435"]
[Result "1/2-1/2"]
[WhiteElo "2405"]
[BlackElo "2517"]
[TimeControl "180+1"]
[EndTime "12:15:04 PST"]
[Termination "Game drawn by stalemate"]

1. d4 {[%clk 0:03:00.9]} 1... Nf6 {[%clk 0:02:59.1]} 2. c4 {[%clk 0:03:00.7]}
2... c5 {[%clk 0:02:59.3]} 3. d5 {[%clk 0:03:00.3]} 3... b5 {[%clk 0:02:59.7]}
4. cxb5 {[%clk 0:02:59.9]} 4... a6 {[%clk 0:03:00.2]} 5. bxa6 {[%clk 0:02:59.7]}
5... e6 {[%clk 0:03:00.7]} 6. Nc3 {[%clk 0:02:58]} 6... exd5 {[%clk 0:03:00.3]}
7. Nxd5 {[%clk 0:02:57.6]} 7... Be7 {[%clk 0:03:00.9]} 8. Nf3 {[%clk 0:02:55.9]}
8... O-O {[%clk 0:03:00.5]} 9. g3 {[%clk 0:02:55.4]} 9... Nxd5 {[%clk
0:02:59.8]} 10. Qxd5 {[%clk 0:02:55]} 10... Rxa6 {[%clk 0:03:00.2]} 11. Bg2
{[%clk 0:02:54.4]} 11... Rd6 {[%clk 0:02:52.8]} 12. Qf5 {[%clk 0:02:45.4]} 12...
Nc6 {[%clk 0:02:44.3]} 13. O-O {[%clk 0:02:44.9]} 13... Rf6 {[%clk 0:02:43.9]}
14. Qc2 {[%clk 0:02:39.4]} 14... d5 {[%clk 0:02:35.7]} 15. Rd1 {[%clk
0:02:36.7]} 15... Bf5 {[%clk 0:02:34.6]} 16. Qa4 {[%clk 0:02:32.1]} 16... Be4
{[%clk 0:02:22]} 17. Bg5 {[%clk 0:02:30.8]} 17... Re6 {[%clk 0:02:15.9]} 18.
Bxe7 {[%clk 0:02:30.3]} 18... Qxe7 {[%clk 0:02:16.8]} 19. Rac1 {[%clk
0:02:22.9]} 19... h6 {[%clk 0:02:07]} 20. b3 {[%clk 0:02:21]} 20... Rb8 {[%clk
0:01:54.4]} 21. Qa3 {[%clk 0:02:07.7]} 21... Nb4 {[%clk 0:01:50.9]} 22. Qb2
{[%clk 0:02:07.5]} 22... d4 {[%clk 0:01:43]} 23. Rd2 {[%clk 0:01:39.1]} 23...
Nd5 {[%clk 0:01:38.4]} 24. Ne1 {[%clk 0:01:21.7]} 24... Bxg2 {[%clk 0:01:33.2]}
25. Nxg2 {[%clk 0:01:21.4]} 25... Nc3 {[%clk 0:01:26]} 26. e3 {[%clk 0:01:18]}
26... Ra8 {[%clk 0:01:19.6]} 27. a4 {[%clk 0:01:00.3]} 27... Rb6 {[%clk
0:01:07.4]} 28. exd4 {[%clk 0:00:48.7]} 28... cxd4 {[%clk 0:01:06]} 29. Re1
{[%clk 0:00:45.4]} 29... Qb4 {[%clk 0:01:01.3]} 30. Nf4 {[%clk 0:00:37.3]} 30...
Nxa4 {[%clk 0:00:42.7]} 31. Qxd4 {[%clk 0:00:35.6]} 31... Qxb3 {[%clk
0:00:30.9]} 32. Nd5 {[%clk 0:00:29.1]} 32... Rbb8 {[%clk 0:00:19.5]} 33. Ne7+
{[%clk 0:00:28.2]} 33... Kh8 {[%clk 0:00:19.7]} 34. Nf5 {[%clk 0:00:26.8]} 34...
f6 {[%clk 0:00:18.9]} 35. Qg4 {[%clk 0:00:20.5]} 35... Ra7 {[%clk 0:00:14.6]}
36. h4 {[%clk 0:00:19.8]} 36... Nc3 {[%clk 0:00:13.8]} 37. Ne7 {[%clk
0:00:14.7]} 37... Qf7 {[%clk 0:00:12.7]} 38. Ng6+ {[%clk 0:00:14]} 38... Kh7
{[%clk 0:00:12.7]} 39. h5 {[%clk 0:00:14.2]} 39... Re8 {[%clk 0:00:12.5]} 40.
Rc1 {[%clk 0:00:12.4]} 40... Ne4 {[%clk 0:00:11.7]} 41. Rdc2 {[%clk 0:00:12.2]}
41... Ng5 {[%clk 0:00:11.1]} 42. Kh2 {[%clk 0:00:10.8]} 42... Qd5 {[%clk
0:00:10.3]} 43. Nh4 {[%clk 0:00:09.3]} 43... Rae7 {[%clk 0:00:09.1]} 44. Qf5+
{[%clk 0:00:07.2]} 44... Qxf5 {[%clk 0:00:09.6]} 45. Nxf5 {[%clk 0:00:07.5]}
45... Re2 {[%clk 0:00:10.5]} 46. Rxe2 {[%clk 0:00:06.9]} 46... Rxe2 {[%clk
0:00:11.4]} 47. Kg2 {[%clk 0:00:07.4]} 47... Ra2 {[%clk 0:00:03.8]} 48. Rc7
{[%clk 0:00:07.4]} 48... Ne6 {[%clk 0:00:04.3]} 49. Re7 {[%clk 0:00:07.1]} 49...
Ra6 {[%clk 0:00:04.5]} 50. Kh3 {[%clk 0:00:06.1]} 50... Kg8 {[%clk 0:00:04.6]}
51. f4 {[%clk 0:00:05.8]} 51... Kf8 {[%clk 0:00:04.5]} 52. Kg4 {[%clk
0:00:05.1]} 52... Nd4 {[%clk 0:00:02.3]} 53. Rb7 {[%clk 0:00:02.1]} 53... Nxf5
{[%clk 0:00:02.7]} 54. Kxf5 {[%clk 0:00:02.8]} 54... Ra3 {[%clk 0:00:02.3]} 55.
g4 {[%clk 0:00:01.4]} 55... Ra4 {[%clk 0:00:01.5]} 56. Kg6 {[%clk 0:00:02.3]}
56... Rxf4 {[%clk 0:00:01.6]} 57. Rf7+ {[%clk 0:00:02.4]} 57... Ke8 {[%clk
0:00:01.9]} 58. Rxg7 {[%clk 0:00:02.4]} 58... Rxg4+ {[%clk 0:00:02.3]} 59. Kxf6
{[%clk 0:00:01.8]} 59... Rxg7 {[%clk 0:00:01.2]} 60. Kxg7 {[%clk 0:00:02.1]}
60... Ke7 {[%clk 0:00:01.8]} 61. Kxh6 {[%clk 0:00:02.7]} 61... Kf8 {[%clk
0:00:02.7]} 62. Kh7 {[%clk 0:00:03.1]} 62... Kf7 {[%clk 0:00:03.3]} 63. h6
{[%clk 0:00:03.7]} 63... Kf8 {[%clk 0:00:04.2]} 64. Kh8 {[%clk 0:00:04.1]} 64...
Kf7 {[%clk 0:00:04.6]} 65. h7 {[%clk 0:00:04.6]} 65... Kf8 {[%clk 0:00:05.5]}
1/2-1/2

[Event "*** Titled Tuesday Blitz"]
[Site "Chess.com"]
[Date "2020.11.24"]
[Round "10"]
[White "NikolaGry"]
[Black "UCantHandleDenker"]
[Result "1/2-1/2"]
[WhiteElo "2715"]
[BlackElo "2530"]
[TimeControl "180+1"]
[EndTime "12:15:05 PST"]
[Termination "Game drawn by repetition"]

1. b3 {[%clk 0:03:00.9]} 1... Nf6 {[%clk 0:02:59.4]} 2. Bb2 {[%clk 0:03:01]}
2... g6 {[%clk 0:02:59.9]} 3. Bxf6 {[%clk 0:03:00.9]} 3... exf6 {[%clk
0:02:59.7]} 4. c4 {[%clk 0:03:01.3]} 4... h5 {[%clk 0:03:00.3]} 5. Nc3 {[%clk
0:02:59.7]} 5... f5 {[%clk 0:03:00.7]} 6. e3 {[%clk 0:02:59.3]} 6... d6 {[%clk
0:03:00.1]} 7. d4 {[%clk 0:02:51.6]} 7... Bh6 {[%clk 0:03:00.1]} 8. g3 {[%clk
0:02:44.9]} 8... Nd7 {[%clk 0:03:00.1]} 9. Nf3 {[%clk 0:02:40.1]} 9... Nf6
{[%clk 0:02:59.6]} 10. Bg2 {[%clk 0:02:37.9]} 10... O-O {[%clk 0:02:56.9]} 11.
O-O {[%clk 0:02:34.9]} 11... c6 {[%clk 0:02:56.1]} 12. Rb1 {[%clk 0:02:33.4]}
12... a5 {[%clk 0:02:54.5]} 13. a3 {[%clk 0:02:32.8]} 13... Re8 {[%clk 0:02:55]}
14. b4 {[%clk 0:02:25.3]} 14... axb4 {[%clk 0:02:55.9]} 15. axb4 {[%clk
0:02:25.3]} 15... Bd7 {[%clk 0:02:52.7]} 16. b5 {[%clk 0:02:23.9]} 16... Ra3
{[%clk 0:02:51.6]} 17. Rb3 {[%clk 0:02:06]} 17... Qa5 {[%clk 0:02:50.1]} 18.
Rxa3 {[%clk 0:01:57.7]} 18... Qxa3 {[%clk 0:02:49.4]} 19. bxc6 {[%clk
0:01:49.1]} 19... bxc6 {[%clk 0:02:48]} 20. Qa1 {[%clk 0:01:39.8]} 20... Ra8
{[%clk 0:02:44.9]} 21. Qxa3 {[%clk 0:01:38.1]} 21... Rxa3 {[%clk 0:02:44.9]} 22.
Nb1 {[%clk 0:01:30.5]} 22... Ra2 {[%clk 0:02:39.9]} 23. Nfd2 {[%clk 0:01:08.2]}
23... Rc2 {[%clk 0:02:24.2]} 24. Re1 {[%clk 0:01:01.5]} 24... c5 {[%clk
0:02:10.1]} 25. dxc5 {[%clk 0:00:48.8]} 25... dxc5 {[%clk 0:02:08.9]} 26. Nb3
{[%clk 0:00:34]} 26... Rxc4 {[%clk 0:01:57.3]} 27. Bf1 {[%clk 0:00:32.3]} 27...
Rc2 {[%clk 0:01:50.5]} 28. Bd3 {[%clk 0:00:31.5]} 28... Rb2 {[%clk 0:01:46.8]}
29. Nxc5 {[%clk 0:00:31.4]} 29... Bc6 {[%clk 0:01:43.6]} 30. Nc3 {[%clk
0:00:30.2]} 30... Ng4 {[%clk 0:01:39.1]} 31. Nd1 {[%clk 0:00:26.6]} 31... Rd2
{[%clk 0:01:35.3]} 32. Be2 {[%clk 0:00:21.9]} 32... Ne5 {[%clk 0:01:23.5]} 33.
Nb3 {[%clk 0:00:21.8]} 33... Ra2 {[%clk 0:01:20.6]} 34. Nd4 {[%clk 0:00:20.8]}
34... Bd7 {[%clk 0:01:12.3]} 35. Nc3 {[%clk 0:00:20]} 35... Rd2 {[%clk 0:01:04]}
36. Nd5 {[%clk 0:00:19]} 36... Kg7 {[%clk 0:01:01.3]} 37. Rd1 {[%clk 0:00:17.6]}
37... Ra2 {[%clk 0:00:57.7]} 38. Rc1 {[%clk 0:00:17.2]} 38... Ra7 {[%clk
0:00:44.6]} 39. h4 {[%clk 0:00:16.8]} 39... Ng4 {[%clk 0:00:43.9]} 40. Bxg4
{[%clk 0:00:15.3]} 40... hxg4 {[%clk 0:00:44]} 41. Rc7 {[%clk 0:00:14.5]} 41...
Rxc7 {[%clk 0:00:40.7]} 42. Nxc7 {[%clk 0:00:14.5]} 42... Kf8 {[%clk 0:00:33.8]}
43. Nd5 {[%clk 0:00:14.3]} 43... Bg7 {[%clk 0:00:32.4]} 44. Kf1 {[%clk
0:00:12.3]} 44... Bc8 {[%clk 0:00:31.7]} 45. Nf4 {[%clk 0:00:12.2]} 45... Ba6+
{[%clk 0:00:30.6]} 46. Ke1 {[%clk 0:00:12.4]} 46... Bc4 {[%clk 0:00:28.4]} 47.
h5 {[%clk 0:00:12.2]} 47... gxh5 {[%clk 0:00:24.1]} 48. Nxf5 {[%clk 0:00:10.6]}
48... Bc3+ {[%clk 0:00:21.7]} 49. Kd1 {[%clk 0:00:10.8]} 49... Bb3+ {[%clk
0:00:21.1]} 50. Kc1 {[%clk 0:00:09.5]} 50... Be1 {[%clk 0:00:20.2]} 51. Nd3
{[%clk 0:00:09.7]} 51... Bc3 {[%clk 0:00:19.9]} 52. Nd4 {[%clk 0:00:09.7]} 52...
Bc4 {[%clk 0:00:13.7]} 53. Kc2 {[%clk 0:00:09]} 53... Bxd4 {[%clk 0:00:10.9]}
54. exd4 {[%clk 0:00:08.4]} 54... Bxd3+ {[%clk 0:00:10.8]} 55. Kxd3 {[%clk
0:00:08.3]} 55... Ke7 {[%clk 0:00:07.2]} 56. Ke4 {[%clk 0:00:08.4]} 56... Ke6
{[%clk 0:00:07.7]} 57. Kf4 {[%clk 0:00:07.4]} 57... Kd5 {[%clk 0:00:08]} 58. Kg5
{[%clk 0:00:07.5]} 58... Kxd4 {[%clk 0:00:08]} 59. Kxh5 {[%clk 0:00:07.7]} 59...
f5 {[%clk 0:00:08]} 60. Kg6 {[%clk 0:00:06.4]} 60... Ke4 {[%clk 0:00:07.5]} 61.
Kg5 {[%clk 0:00:06.4]} 61... Ke5 {[%clk 0:00:06.4]} 62. Kg6 {[%clk 0:00:05.2]}
62... Ke4 {[%clk 0:00:06.3]} 63. Kg5 {[%clk 0:00:04.2]} 63... Ke5 {[%clk
0:00:06.4]} 64. Kg6 {[%clk 0:00:04]} 64... Ke4 {[%clk 0:00:06.7]} 1/2-1/2

[Event "*** Titled Tuesday Blitz"]
[Site "Chess.com"]
[Date "2020.11.24"]
[Round "10"]
[White "ambaixador"]
[Black "Chigorinetz"]
[Result "1-0"]
[WhiteElo "2438"]
[BlackElo "2539"]
[TimeControl "180+1"]
[EndTime "12:15:05 PST"]
[Termination "ambaixador won by resignation"]

1. Nf3 {[%clk 0:03:00.8]} 1... d5 {[%clk 0:02:59.2]} 2. c4 {[%clk 0:03:00.9]}
2... dxc4 {[%clk 0:02:59.3]} 3. Qa4+ {[%clk 0:03:00.4]} 3... Nc6 {[%clk
0:02:56.8]} 4. e3 {[%clk 0:02:59.1]} 4... Be6 {[%clk 0:02:48]} 5. Nd4 {[%clk
0:02:53]} 5... Bd7 {[%clk 0:02:40.9]} 6. Nxc6 {[%clk 0:02:43.9]} 6... Bxc6
{[%clk 0:02:40]} 7. Qxc4 {[%clk 0:02:44.8]} 7... e5 {[%clk 0:02:36.7]} 8. b4
{[%clk 0:02:39.5]} 8... Nf6 {[%clk 0:02:21.3]} 9. Bb2 {[%clk 0:02:36.7]} 9...
Bd6 {[%clk 0:02:18.1]} 10. b5 {[%clk 0:02:29.1]} 10... Bd5 {[%clk 0:02:17.4]}
11. Qc2 {[%clk 0:02:24.5]} 11... O-O {[%clk 0:02:10.4]} 12. Nc3 {[%clk
0:02:24.4]} 12... Be6 {[%clk 0:02:10]} 13. Be2 {[%clk 0:02:17.3]} 13... Ng4
{[%clk 0:02:09]} 14. O-O {[%clk 0:02:07.5]} 14... Qh4 {[%clk 0:02:07.7]} 15. h3
{[%clk 0:02:05.2]} 15... Nf6 {[%clk 0:02:04.4]} 16. Bf3 {[%clk 0:01:57.9]} 16...
Rad8 {[%clk 0:01:44.5]} 17. Bxb7 {[%clk 0:01:54.7]} 17... c5 {[%clk 0:01:37.3]}
18. Ne4 {[%clk 0:01:31.1]} 18... Bb8 {[%clk 0:01:34.8]} 19. Nxf6+ {[%clk
0:01:29.1]} 19... gxf6 {[%clk 0:01:33.8]} 20. Bc3 {[%clk 0:01:22.8]} 20... Bxh3
{[%clk 0:01:22.6]} 21. gxh3 {[%clk 0:01:21.1]} 21... Kh8 {[%clk 0:01:21.8]} 22.
Qf5 {[%clk 0:01:18.5]} 22... Rg8+ {[%clk 0:01:11.1]} 23. Kh1 {[%clk 0:01:18.7]}
23... Rd6 {[%clk 0:00:45.8]} 24. Rg1 {[%clk 0:01:14.3]} 24... Rg6 {[%clk
0:00:46.1]} 25. Rxg6 {[%clk 0:01:01]} 25... hxg6 {[%clk 0:00:45]} 26. Qf3 {[%clk
0:00:50.4]} 26... Rd8 {[%clk 0:00:36.5]} 27. Kg2 {[%clk 0:00:42.5]} 27... Kg7
{[%clk 0:00:36.4]} 28. Qg4 {[%clk 0:00:40.8]} 28... Qh6 {[%clk 0:00:32.3]} 29.
Rg1 {[%clk 0:00:35.5]} 29... Re8 {[%clk 0:00:31]} 30. Bd5 {[%clk 0:00:34.4]}
30... Rd8 {[%clk 0:00:30.5]} 31. Bc6 {[%clk 0:00:34]} 31... Kf8 {[%clk
0:00:30.3]} 32. a4 {[%clk 0:00:33.8]} 32... f5 {[%clk 0:00:29.8]} 33. Qe2 {[%clk
0:00:32.8]} 33... e4 {[%clk 0:00:28.6]} 34. f4 {[%clk 0:00:32.2]} 34... g5
{[%clk 0:00:25.5]} 35. fxg5 {[%clk 0:00:30.7]} 35... Qxg5+ {[%clk 0:00:25.6]}
36. Kf1 {[%clk 0:00:31.2]} 36... Qh4 {[%clk 0:00:25.5]} 37. Qg2 {[%clk
0:00:28.9]} 37... Ke7 {[%clk 0:00:22.6]} 38. Qg5+ {[%clk 0:00:27.4]} 38... Qxg5
{[%clk 0:00:22.6]} 39. Rxg5 {[%clk 0:00:28.3]} 39... Bc7 {[%clk 0:00:22.5]} 40.
Rxf5 {[%clk 0:00:26.5]} 40... Ke6 {[%clk 0:00:20.8]} 41. Rf6+ {[%clk 0:00:26.4]}
41... Ke7 {[%clk 0:00:20.8]} 42. Rh6 {[%clk 0:00:25.3]} 42... Rg8 {[%clk
0:00:20.4]} 43. Bf6+ {[%clk 0:00:24.6]} 43... Ke6 {[%clk 0:00:20.4]} 44. Bd4+
{[%clk 0:00:22.7]} 44... Kf5 {[%clk 0:00:19.5]} 45. Bxc5 {[%clk 0:00:21.8]}
45... Rd8 {[%clk 0:00:15.6]} 46. Bb4 {[%clk 0:00:20.7]} 46... Be5 {[%clk
0:00:14.1]} 47. Bc3 {[%clk 0:00:20.4]} 47... f6 {[%clk 0:00:12.4]} 48. Bxe5
{[%clk 0:00:19.9]} 48... Kxe5 {[%clk 0:00:13.1]} 49. Ke2 {[%clk 0:00:20.4]}
49... Rg8 {[%clk 0:00:12.6]} 50. Rh4 {[%clk 0:00:19.7]} 50... f5 {[%clk
0:00:13.5]} 51. Rf4 {[%clk 0:00:18.8]} 51... Rg3 {[%clk 0:00:12.4]} 52. Rf2
{[%clk 0:00:18.7]} 52... Rxh3 {[%clk 0:00:12.2]} 53. d4+ {[%clk 0:00:18.2]}
53... exd3+ {[%clk 0:00:10.9]} 54. Kxd3 {[%clk 0:00:19.1]} 54... Rg3 {[%clk
0:00:10.9]} 55. a5 {[%clk 0:00:18.7]} 55... Rg6 {[%clk 0:00:10]} 56. Rc2 {[%clk
0:00:18.5]} 56... Rd6+ {[%clk 0:00:09.6]} 57. Ke2 {[%clk 0:00:18.2]} 57... f4
{[%clk 0:00:08.6]} 58. exf4+ {[%clk 0:00:18.1]} 58... Kxf4 {[%clk 0:00:09.3]}
59. b6 {[%clk 0:00:18.5]} 59... axb6 {[%clk 0:00:09]} 60. axb6 {[%clk
0:00:19.4]} 60... Rd8 {[%clk 0:00:09.1]} 61. b7 {[%clk 0:00:18.8]} 61... Ke5
{[%clk 0:00:08.5]} 62. Ra2 {[%clk 0:00:18]} 62... Kd6 {[%clk 0:00:07.5]} 63. Ra8
{[%clk 0:00:17.9]} 63... Re8+ {[%clk 0:00:06.9]} 64. Rxe8 {[%clk 0:00:17.5]} 1-0

[Event "*** Titled Tuesday Blitz"]
[Site "Chess.com"]
[Date "2020.11.24"]
[Round "10"]
[White "onnoelgersma"]
[Black "biostatistician"]
[Result "1/2-1/2"]
[WhiteElo "2424"]
[BlackElo "2536"]
[TimeControl "180+1"]
[EndTime "12:15:08 PST"]
[Termination "Game drawn - insufficient material"]

1. e3 {[%clk 0:03:00.7]} 1... d5 {[%clk 0:02:58.7]} 2. Nf3 {[%clk 0:02:59.6]}
2... Nf6 {[%clk 0:02:57.9]} 3. b3 {[%clk 0:02:59.5]} 3... Bg4 {[%clk 0:02:56.9]}
4. Bb2 {[%clk 0:02:55.7]} 4... e6 {[%clk 0:02:53]} 5. h3 {[%clk 0:02:55.4]} 5...
Bh5 {[%clk 0:02:52.9]} 6. Be2 {[%clk 0:02:52.7]} 6... c5 {[%clk 0:02:50.5]} 7.
Bb5+ {[%clk 0:02:49.7]} 7... Nc6 {[%clk 0:02:47.9]} 8. O-O {[%clk 0:02:48.7]}
8... Bd6 {[%clk 0:02:47]} 9. d3 {[%clk 0:02:34.7]} 9... O-O {[%clk 0:02:45.3]}
10. Bxc6 {[%clk 0:02:33.9]} 10... bxc6 {[%clk 0:02:46.2]} 11. Nbd2 {[%clk
0:02:34.3]} 11... Nd7 {[%clk 0:02:44.9]} 12. g4 {[%clk 0:02:34.2]} 12... Bg6
{[%clk 0:02:44.7]} 13. Qe2 {[%clk 0:02:28.7]} 13... f5 {[%clk 0:02:39.5]} 14.
Kg2 {[%clk 0:02:14.9]} 14... e5 {[%clk 0:02:36.5]} 15. e4 {[%clk 0:02:05.7]}
15... fxg4 {[%clk 0:02:24.7]} 16. hxg4 {[%clk 0:02:03.7]} 16... Qe7 {[%clk
0:02:21.5]} 17. Rae1 {[%clk 0:01:58.3]} 17... Rf4 {[%clk 0:02:20.9]} 18. Ng1
{[%clk 0:01:56.3]} 18... Raf8 {[%clk 0:02:18.5]} 19. f3 {[%clk 0:01:56.5]} 19...
h5 {[%clk 0:02:01.5]} 20. Nh3 {[%clk 0:01:42.1]} 20... R4f7 {[%clk 0:02:00.5]}
21. g5 {[%clk 0:01:42.1]} 21... Rf4 {[%clk 0:01:28.6]} 22. Qf2 {[%clk
0:01:31.6]} 22... h4 {[%clk 0:01:20.9]} 23. Kh2 {[%clk 0:01:22.1]} 23... Bh5
{[%clk 0:01:15.9]} 24. Nxf4 {[%clk 0:01:21.5]} 24... Rxf4 {[%clk 0:01:16.8]} 25.
Rg1 {[%clk 0:01:21.3]} 25... Qf7 {[%clk 0:01:07.1]} 26. Ref1 {[%clk 0:01:18.6]}
26... Nf8 {[%clk 0:01:04.6]} 27. Qe3 {[%clk 0:01:11.4]} 27... Ng6 {[%clk
0:01:02.3]} 28. Ba3 {[%clk 0:00:54.6]} 28... h3 {[%clk 0:00:37.9]} 29. Bxc5
{[%clk 0:00:27.6]} 29... d4 {[%clk 0:00:37.9]} 30. Qe2 {[%clk 0:00:22.1]} 30...
Bxc5 {[%clk 0:00:37.2]} 31. Rg3 {[%clk 0:00:21.5]} 31... Bb4 {[%clk 0:00:31.5]}
32. Nc4 {[%clk 0:00:20.9]} 32... Nh4 {[%clk 0:00:20.9]} 33. Nxe5 {[%clk
0:00:20.6]} 33... Qc7 {[%clk 0:00:20.4]} 34. Ng4 {[%clk 0:00:17.6]} 34... Bxg4
{[%clk 0:00:17.8]} 35. fxg4 {[%clk 0:00:18.5]} 35... Rxf1 {[%clk 0:00:16.6]} 36.
Qxf1 {[%clk 0:00:19.4]} 36... Bd6 {[%clk 0:00:17.2]} 37. Qxh3 {[%clk 0:00:14]}
37... Bxg3+ {[%clk 0:00:17.5]} 38. Qxg3 {[%clk 0:00:14.9]} 38... Qxg3+ {[%clk
0:00:17.8]} 39. Kxg3 {[%clk 0:00:15.8]} 39... Ng6 {[%clk 0:00:17.8]} 40. Kf3
{[%clk 0:00:15.1]} 40... Kf7 {[%clk 0:00:17.5]} 41. Ke2 {[%clk 0:00:15.5]} 41...
Ke6 {[%clk 0:00:17.9]} 42. Kd2 {[%clk 0:00:16.1]} 42... c5 {[%clk 0:00:17.7]}
43. c3 {[%clk 0:00:16.5]} 43... Ne5 {[%clk 0:00:18.1]} 44. b4 {[%clk 0:00:16.6]}
44... dxc3+ {[%clk 0:00:16.4]} 45. Kxc3 {[%clk 0:00:17.5]} 45... cxb4+ {[%clk
0:00:17.3]} 46. Kxb4 {[%clk 0:00:17.9]} 46... Nxd3+ {[%clk 0:00:17.9]} 47. Kc4
{[%clk 0:00:18.5]} 47... Ne5+ {[%clk 0:00:17.7]} 48. Kb5 {[%clk 0:00:19.2]}
48... Nxg4 {[%clk 0:00:16.2]} 49. Ka6 {[%clk 0:00:20.1]} 49... Nf2 {[%clk
0:00:16.5]} 50. Kxa7 {[%clk 0:00:21]} 50... Nxe4 {[%clk 0:00:16.9]} 51. a4
{[%clk 0:00:20.5]} 51... Nxg5 {[%clk 0:00:12.8]} 52. a5 {[%clk 0:00:20.9]} 52...
Ne4 {[%clk 0:00:11.6]} 53. Kb6 {[%clk 0:00:19.9]} 53... Nd6 {[%clk 0:00:09.3]}
54. Kc6 {[%clk 0:00:15.8]} 54... g5 {[%clk 0:00:05.6]} 55. a6 {[%clk 0:00:16]}
55... Nc8 {[%clk 0:00:05]} 56. Kc7 {[%clk 0:00:14.1]} 56... Na7 {[%clk
0:00:05.3]} 57. Kb6 {[%clk 0:00:12.4]} 57... g4 {[%clk 0:00:02.6]} 58. Kxa7
{[%clk 0:00:12.5]} 58... g3 {[%clk 0:00:03.5]} 59. Kb8 {[%clk 0:00:11.7]} 59...
g2 {[%clk 0:00:04.4]} 60. a7 {[%clk 0:00:12.1]} 60... g1=Q {[%clk 0:00:05.3]}
61. a8=Q {[%clk 0:00:13]} 61... Qb6+ {[%clk 0:00:04.9]} 62. Qb7 {[%clk
0:00:13.4]} 62... Qxb7+ {[%clk 0:00:05.3]} 63. Kxb7 {[%clk 0:00:13.4]} 1/2-1/2